bitfinex/quotes_ETHUSD_20230102
["timestamp","ask_amount","ask_price","bid_price","bid_amount"]
[1672658817524,9.73894024,1217.7,1217.6,33.84274228]
[1672658817741,9.73894024,1217.7,1217.6,27.63568532]
[1672658818518,4.73894024,1217.7,1217.6,27.63568532]
[1672658818740,4.73894024,1217.7,1217.6,31.81614261]
[1672658819517,9.73894024,1217.7,1217.6,31.81614261]
[1672658819816,9.73894024,1217.7,1217.6,27.63568532]
[1672658825516,4.73894024,1217.7,1217.6,27.63568532]
[1672658826593,9.73894024,1217.7,1217.6,27.63568532]
[1672658828556,9.73894024,1217.7,1217.6,27.3833015]
[1672658828924,9.73894024,1217.7,1217.6,27.63568532]
[1672658830445,9.73583876,1217.7,1217.6,27.63568532]
[1672658831301,9.73583876,1217.7,1217.6,35.84855532]
[1672658832441,4.73583876,1217.7,1217.6,35.84855532]
[1672658833668,9.73583876,1217.7,1217.6,35.84855532]
[1672658839492,4.73583876,1217.7,1217.6,35.84855532]
[1672658840587,9.73583876,1217.7,1217.6,35.84855532]
[1672658841656,9.73583876,1217.7,1217.6,10.78281532]
[1672658841961,9.73583876,1217.7,1217.6,7.7037884]
[1672658843663,9.73583876,1217.7,1217.6,7.9337884]
[1672658848188,4.73583876,1217.7,1217.6,7.9337884]
[1672658848970,9.73583876,1217.7,1217.6,7.9337884]
[1672658851077,9.73583876,1217.7,1217.6,9.89851924]
[1672658854037,9.73583876,1217.7,1217.6,7.93172723]
[1672658862032,4.73583876,1217.7,1217.6,7.93172723]
[1672658862290,9.73583876,1217.7,1217.6,7.93172723]
[1672658867529,9.73583876,1217.7,1217.6,7.88172723]
[1672658873020,4.73583876,1217.7,1217.6,7.88172723]
[1672658873895,9.73583876,1217.7,1217.6,7.88172723]
[1672658877750,9.73583876,1217.7,1217.6,9.01989995]
[1672658878753,9.73583876,1217.7,1217.6,25.44563995]
[1672658879215,9.73583876,1217.7,1217.6,17.23276995]
[1672658879689,9.73583876,1217.7,1217.6,9.01989995]
[1672658888255,4.73583876,1217.7,1217.6,9.01989995]
[1672658888636,4.73583876,1217.7,1217.6,7.65172723]
[1672658889059,9.73583876,1217.7,1217.6,7.65172723]
[1672658890966,9.73318686,1217.7,1217.6,7.65172723]
[1672658899779,4.73318686,1217.7,1217.6,7.65172723]
[1672658900622,9.73318686,1217.7,1217.6,7.65172723]
[1672658902469,9.73318686,1217.7,1217.6,8.76689995]
[1672658905851,9.73318686,1217.7,1217.6,7.65172723]
[1672658908545,4.73318686,1217.7,1217.6,7.65172723]
[1672658909025,9.73318686,1217.7,1217.6,7.65172723]
[1672658914295,11.75418686,1217.7,1217.6,3.50286609]
[1672658914508,13.96965979,1217.7,1217.6,0.15754927]
[1672658914821,13.96965979,1217.7,1217.6,0.15452855]
[1672658923633,8.96965979,1217.7,1217.6,0.15452855]
[1672658924290,13.96965979,1217.7,1217.6,0.15452855]
[1672658927414,9.73318686,1217.7,1217.6,0.15452855]
[1672658935395,4.73318686,1217.7,1217.6,0.15452855]
[1672658935557,4.73318686,1217.7,1217.6,0.15173917]
[1672658935883,9.73318686,1217.7,1217.6,0.15173917]
[1672658944692,11.75418686,1217.7,1217.6,0.15173917]
[1672658944929,13.97802235,1217.7,1217.6,0.15173917]
[1672658955768,11.95702235,1217.7,1217.6,0.15173917]
[1672658955986,13.97802235,1217.7,1217.6,0.15173917]
[1672658958086,13.97802235,1217.7,1217.6,0.14792007]
[1672658968267,6.75418686,1217.7,1217.6,0.14792007]
[1672658968486,4.73318686,1217.7,1217.6,0.14792007]
[1672658968702,9.73318686,1217.7,1217.6,0.14792007]
[1672658977732,4.73318686,1217.7,1217.6,0.14792007]
[1672658978849,9.73318686,1217.7,1217.6,0.14792007]
[1672658978994,9.73318686,1217.7,1217.6,0.14417611]
[1672658984798,4.73318686,1217.7,1217.6,0.14417611]
[1672658985806,11.05212235,1217.7,1217.6,0.14417611]
[1672658986138,14.55212235,1217.7,1217.6,0.14417611]
[1672658987224,11.05212235,1217.7,1217.6,0.14417611]
[1672658989499,14.55212235,1217.7,1217.6,0.14417611]
[1672658990175,11.05212235,1217.7,1217.6,0.14417611]
[1672658991340,14.55212235,1217.7,1217.6,0.14417611]
[1672658991566,11.05212235,1217.7,1217.6,0.14417611]
[1672658992041,13.55212235,1217.7,1217.6,0.14417611]
[1672658993016,8.55212235,1217.7,1217.6,0.14417611]
[1672658993802,6.05212235,1217.7,1217.6,0.14417611]
[1672658994003,11.05212235,1217.7,1217.6,0.14417611]
[1672659002800,11.05212235,1217.7,1217.6,0.14190933]
[1672659003884,6.05212235,1217.7,1217.6,0.14190933]
[1672659004315,4.73318686,1217.7,1217.6,0.14190933]
[1672659005035,9.73318686,1217.7,1217.6,0.14190933]
[1672659016863,4.73318686,1217.7,1217.6,0.14190933]
[1672659017011,9.73318686,1217.7,1217.6,0.14190933]
[1672659017927,9.73318686,1217.7,1217.6,0.09190933]
[1672659018967,11.55212235,1217.7,1217.6,0.09190933]
[1672659019110,9.73318686,1217.7,1217.6,0.09190933]
[1672659023120,4.73318686,1217.7,1217.6,0.09190933]
[1672659023950,9.73318686,1217.7,1217.6,0.09190933]
[1672659027377,9.73518686,1217.7,1217.6,0.09190933]
[1672659027694,9.73318686,1217.7,1217.6,0.09190933]
[1672659029989,4.73318686,1217.7,1217.6,0.09190933]
[1672659031035,9.68318686,1217.7,1217.6,0.09190933]
[1672659036915,4.68318686,1217.7,1217.6,0.09190933]
[1672659037813,9.68318686,1217.7,1217.6,0.09190933]
[1672659047952,9.68318686,1217.7,1217.6,6.53836749]
[1672659048276,9.68318686,1217.7,1217.6,3.4583562]
[1672659048477,9.68318686,1217.7,1217.6,6.3654232]
[1672659048686,9.68318686,1217.7,1217.6,6.4583562]
[1672659049696,9.68318686,1217.7,1217.6,14.79329168]
[1672659050929,9.68318686,1217.7,1217.6,10.60721734]
[1672659053556,9.68318686,1217.7,1217.6,10.60340959]
[1672659054426,9.68318686,1217.7,1217.6,15.01948393]
[1672659054635,9.68318686,1217.7,1217.6,10.83340959]
[1672659055870,9.68318686,1217.7,1217.6,12.86140959]
[1672659062186,4.68318686,1217.7,1217.6,12.86140959]
[1672659062413,4.68318686,1217.7,1217.6,17.04748393]
[1672659062414,9.68318686,1217.7,1217.6,17.04748393]
[1672659062646,9.68318686,1217.7,1217.6,12.86140959]
[1672659072309,9.68318686,1217.7,1217.6,21.07427959]
[1672659072522,9.68318686,1217.7,1217.6,12.86140959]
[1672659072856,9.68318686,1217.7,1217.6,10.85340959]
[1672659073212,9.68518686,1217.7,1217.6,10.85059867]
[1672659073424,9.68318686,1217.7,1217.6,8.82540959]
[1672659075876,9.68318686,1217.7,1217.6,8.82314856]
[1672659081709,9.68518686,1217.7,1217.6,8.59033764]
[1672659081917,9.68318686,1217.7,1217.6,8.59314856]
[1672659082283,4.68318686,1217.7,1217.6,8.59314856]
[1672659082493,9.68318686,1217.7,1217.6,8.59314856]
[1672659082933,9.68318686,1217.7,1217.6,7.58001851]
[1672659088628,4.68318686,1217.7,1217.6,7.58001851]
[1672659089493,9.68318686,1217.7,1217.6,7.58001851]
[1672659095547,4.68318686,1217.7,1217.6,7.58001851]
[1672659096430,9.68318686,1217.7,1217.6,7.58001851]
[1672659096616,9.68318686,1217.7,1217.6,9.30742779]
[1672659097655,9.68318686,1217.7,1217.6,9.30348095]
[1672659102648,4.68318686,1217.7,1217.6,9.30348095]
[1672659103485,9.68318686,1217.7,1217.6,9.30348095]
[1672659108531,9.68318686,1217.7,1217.6,3.42721053]
[1672659108743,9.68318686,1217.7,1217.6,3.08189371]
[1672659111367,9.68318686,1217.7,1217.6,7.23075485]
[1672659111684,9.68318686,1217.7,1217.6,7.32368785]
[1672659114914,4.68318686,1217.7,1217.6,7.32368785]
[1672659115118,4.68318686,1217.7,1217.6,8.63209502]
[1672659115895,9.68318686,1217.7,1217.6,8.63209502]
[1672659117563,9.68318686,1217.7,1217.6,3.17482671]
[1672659117898,9.68318686,1217.7,1217.6,3.08189371]
[1672659119480,9.66384668,1217.7,1217.6,3.08189371]
[1672659128457,9.66384668,1217.7,1217.6,0.08189371]
[1672659129623,12.30664668,1217.7,1217.6,0.08189371]
[1672659129979,14.51841815,1217.7,1217.6,0.08189371]
[1672659130503,12.30664668,1217.7,1217.6,0.08189371]
[1672659130713,15.80664668,1217.7,1217.6,0.08189371]
[1672659130891,15.18984668,1217.7,1217.6,0.08189371]
[1672659131456,11.68984668,1217.7,1217.6,0.08189371]
[1672659132885,15.18984668,1217.7,1217.6,0.08189371]
[1672659134080,11.68984668,1217.7,1217.6,0.08189371]
[1672659137276,9.48984668,1217.7,1217.6,0.08189371]
[1672659138235,7.46384668,1217.7,1217.6,0.08189371]
[1672659142865,2.46384668,1217.7,1217.6,0.08189371]
[1672659143537,7.46384668,1217.7,1217.6,0.08189371]
[1672659149374,2.46384668,1217.7,1217.6,0.08189371]
[1672659150571,7.46384668,1217.7,1217.6,0.08189371]
[1672659152763,7.46052292,1217.7,1217.6,0.08189371]
[1672659156435,2.46052292,1217.7,1217.6,0.08189371]
[1672659157532,7.46052292,1217.7,1217.6,0.08189371]
[1672659159037,7.46052292,1217.7,1217.5,3.5]
[1672659161195,7.46052292,1217.7,1217.5,5.31335412]
[1672659161364,7.46052292,1217.7,1217.5,5.40628712]
[1672659161742,7.46052292,1217.7,1217.5,1.90628712]
[1672659162049,7.46052292,1217.7,1217.5,1.81335412]
[1672659167074,7.46052292,1217.7,1217.5,5.31335412]
[1672659167291,7.46052292,1217.7,1217.5,5.40628712]
[1672659167453,2.46052292,1217.7,1217.5,5.40628712]
[1672659168559,5.0,1217.6,1217.5,5.40628712]
[1672659171686,5.0,1217.6,1217.5,1.90628712]
[1672659171864,5.0,1217.6,1217.5,1.81335412]
[1672659174601,2.52652292,1217.7,1217.5,5.31335412]
[1672659174812,2.46052292,1217.7,1217.5,5.40628712]
[1672659175441,5.0,1217.6,1217.5,5.40628712]
[1672659180677,5.0,1217.6,1217.5,1.90628712]
[1672659180800,5.0,1217.6,1217.5,1.81335412]
[1672659181005,5.0,1217.6,1217.5,1.81043709]
[1672659181430,2.52652292,1217.7,1217.5,1.81043709]
[1672659181681,2.46052292,1217.7,1217.4,14.519933]
[1672659181906,2.46052292,1217.7,1217.4,18.66879414]
[1672659182545,5.0,1217.5,1217.4,18.66879414]
[1672659182699,5.0,1217.5,1217.4,10.74179414]
[1672659188644,0.066,1217.6,1217.4,10.74179414]
[1672659188818,2.46052292,1217.7,1217.4,13.13893917]
[1672659189465,5.0,1217.5,1217.4,13.13893917]
[1672659195730,5.0,1217.5,1217.4,19.34108047]
[1672659195948,5.0,1217.5,1217.4,38.25990429]
[1672659197997,5.0,1217.5,1217.4,30.04568429]
[1672659201993,5.0,1217.5,1217.4,30.04315694]
[1672659203400,0.066,1217.6,1217.4,30.04315694]
[1672659203661,2.46052292,1217.7,1217.5,9.89686114]
[1672659203845,2.46052292,1217.7,1217.6,9.16486114]
[1672659204056,2.46052292,1217.7,1217.6,9.51017796]
[1672659204512,7.46052292,1217.7,1217.6,9.51017796]
[1672659209870,7.46052292,1217.7,1217.6,7.49417796]
[1672659211456,7.46052292,1217.7,1217.6,3.34531682]
[1672659211643,7.46052292,1217.7,1217.6,0.25238382]
[1672659211819,9.04729521,1217.7,1217.5,3.0]
[1672659214882,7.46052292,1217.7,1217.5,3.0]
[1672659216814,7.46419098,1217.7,1217.5,3.0]
[1672659217550,10.96419098,1217.7,1217.5,3.0]
[1672659217756,10.96419098,1217.7,1217.4,3.34531682]
[1672659217917,10.96419098,1217.7,1217.4,7.40124496]
[1672659218130,12.90133008,1217.7,1217.4,7.49417796]
[1672659218806,12.90133008,1217.7,1217.4,3.34531682]
[1672659219027,12.90133008,1217.7,1217.4,3.25238382]
[1672659222349,3.5,1217.6,1217.4,3.25238382]
[1672659222554,5.0,1217.5,1217.4,3.25238382]
[1672659222812,5.0,1217.5,1217.4,0.25238382]
[1672659222979,7.8846,1217.5,1217.3,0.40795612]
[1672659223326,7.8846,1217.5,1217.0,3.5]
[1672659223327,0.0025267,1217.3,1217.0,3.5]
[1672659223544,5.0025267,1217.3,1217.0,3.5]
[1672659223756,5.9831935,1217.3,1217.0,3.5]
[1672659223900,5.9831935,1217.3,1217.0,3.25]
[1672659224952,5.98100091,1217.3,1217.0,3.25]
[1672659225618,5.98100091,1217.3,1217.0,7.39886114]
[1672659225838,5.98100091,1217.3,1217.0,7.49179414]
[1672659226469,5.98466897,1217.3,1217.0,7.49179414]
[1672659231178,0.98466897,1217.3,1217.0,7.49179414]
[1672659232181,5.0,1217.1,1217.0,7.49179414]
[1672659232335,5.0,1217.1,1217.0,10.49179414]
[1672659234240,5.0,1217.1,1217.0,3.092933]
[1672659234458,5.0,1217.1,1217.0,3.0]
[1672659239090,5.00366806,1217.1,1217.0,3.0]
[1672659244553,5.0,1217.1,1217.0,3.0]
[1672659246056,5.0,1217.1,1216.9,0.90192647]
[1672659246057,5.5066,1217.1,1216.9,0.90192647]
[1672659246246,5.5066,1217.1,1216.9,0.80899347]
[1672659247345,4.14886114,1216.9,1216.3,0.7549765]
[1672659247507,16.48009016,1216.9,1216.8,0.071]
[1672659247720,16.48009016,1216.9,1216.6,0.03800294]
[1672659247721,2.34099959,1216.8,1216.6,0.03800294]
[1672659247931,12.5453,1216.7,1216.6,0.03800294]
[1672659248142,12.5453,1216.7,1216.3,0.7549765]
[1672659248143,0.00366806,1216.6,1216.3,0.7549765]
[1672659248406,2.028,1216.4,1216.3,0.7549765]
[1672659248737,4.98649959,1216.4,1216.3,0.7549765]
[1672659248912,4.99016765,1216.4,1216.3,0.7549765]
[1672659249070,5.99578442,1216.4,1216.3,0.7549765]
[1672659249276,6.04578442,1216.4,1216.3,0.7549765]
[1672659249529,11.04578442,1216.4,1216.3,0.7549765]
[1672659250753,13.06178442,1216.4,1216.3,0.75156651]
[1672659251547,13.06378442,1216.4,1216.3,0.75156651]
[1672659251693,13.06178442,1216.4,1216.3,0.75156651]
[1672659252172,17.21064556,1216.4,1216.3,0.75156651]
[1672659252360,24.38764556,1216.4,1216.3,0.75156651]
[1672659252703,11.03378442,1216.4,1216.3,0.75156651]
[1672659253802,8.69278483,1216.4,1216.3,0.75156651]
[1672659254322,21.81064597,1216.4,1216.3,0.75156651]
[1672659255011,14.86164597,1216.4,1216.3,0.75156651]
[1672659256705,14.86364597,1216.4,1216.3,0.75156651]
[1672659256917,14.86164597,1216.4,1216.3,0.75156651]
[1672659259032,14.86364597,1216.4,1216.3,0.75156651]
[1672659259246,14.86164597,1216.4,1216.3,0.75156651]
[1672659260170,14.86364597,1216.4,1216.3,0.75156651]
[1672659260395,14.86164597,1216.4,1216.3,0.75156651]
[1672659260763,23.87564597,1216.4,1216.3,0.75156651]
[1672659261319,29.03364597,1216.4,1216.3,0.75156651]
[1672659261512,26.22964597,1216.4,1216.3,0.75156651]
[1672659261855,32.51894027,1216.4,1216.3,0.75156651]
[1672659262013,29.22964597,1216.4,1216.3,0.75156651]
[1672659262223,26.22964597,1216.4,1216.3,0.75156651]
[1672659262438,25.99964597,1216.4,1216.3,0.75156651]
[1672659263116,21.07164597,1216.4,1216.3,0.75156651]
[1672659266294,7.2905,1216.4,1216.3,0.75156651]
[1672659266459,5.05,1216.4,1216.3,0.75156651]
[1672659273395,5.05,1216.4,1216.3,0.74922221]
[1672659277616,3.8244248,1216.4,1216.3,10.59387221]
[1672659277787,3.8244248,1216.4,1216.3,45.19292601]
[1672659278200,0.066,1216.6,1216.3,28.97962601]
[1672659278420,7.066,1217.0,1216.4,13.48337891]
[1672659278621,7.05,1217.0,1216.5,8.36406596]
[1672659278839,7.05,1217.0,1216.6,3.5]
[1672659279089,0.05,1217.0,1216.6,3.5]
[1672659279305,2.2851,1217.1,1216.6,7.64886114]
[1672659279451,1.618,1217.1,1216.8,3.5]
[1672659280323,5.0,1216.9,1216.8,3.5]
[1672659280547,5.05,1216.9,1216.7,3.074]
[1672659280725,5.05,1216.9,1216.7,6.01408601]
[1672659280954,5.05,1216.9,1216.7,6.08808601]
[1672659281543,5.05,1216.9,1216.7,3.074]
[1672659281752,5.05,1216.9,1216.7,3.0]
[1672659284611,5.05,1216.9,1216.7,6.5]
[1672659284809,5.05,1216.9,1216.7,6.574]
[1672659286589,5.05,1216.9,1216.8,3.5]
[1672659286757,5.05,1216.9,1216.8,6.5]
[1672659286965,5.05,1216.9,1216.8,3.074]
[1672659287178,5.05,1216.9,1216.8,3.0]
[1672659288555,5.05,1216.9,1216.7,3.074]
[1672659288868,5.05,1216.9,1216.7,3.0]
[1672659294705,11.49112795,1216.9,1216.6,0.074]
[1672659294919,12.10832795,1216.9,1216.5,3.0]
[1672659295110,0.00366806,1216.8,1216.5,6.5]
[1672659295335,5.0,1216.7,1216.5,6.574]
[1672659295550,5.05,1216.7,1216.5,6.574]
[1672659296811,5.05,1216.7,1216.5,3.574]
[1672659297084,5.05,1216.7,1216.5,3.5]
[1672659298509,5.05,1216.7,1216.4,3.99291336]
[1672659298703,5.05366806,1216.7,1216.4,3.91891336]
[1672659298919,5.05366806,1216.7,1216.4,6.90541682]
[1672659299229,5.05366806,1216.7,1216.4,6.97941682]
[1672659299441,5.05366806,1216.7,1216.4,6.97704513]
[1672659299663,0.03800294,1216.6,1216.4,6.97704513]
[1672659299881,5.0,1216.5,1216.4,6.97704513]
[1672659300130,5.05,1216.5,1216.4,3.45253873]
[1672659300302,5.05,1216.5,1216.4,3.0]
[1672659300971,5.05,1216.5,1216.4,6.5]
[1672659301123,5.05,1216.5,1216.4,6.574]
[1672659301864,5.05,1216.5,1216.4,3.074]
[1672659302074,5.05,1216.5,1216.4,3.0]
[1672659302737,5.05,1216.5,1216.4,6.5]
[1672659302950,5.05,1216.5,1216.4,6.574]
[1672659303291,5.05,1216.5,1216.4,3.074]
[1672659303451,5.05,1216.5,1216.4,3.0]
[1672659303650,5.5566,1216.5,1216.3,11.85632221]
[1672659303861,7.1776,1216.5,1216.3,11.85632221]
[1672659304289,7.1776,1216.5,1216.3,0.82322221]
[1672659304615,7.1776,1216.5,1216.3,0.74922221]
[1672659306002,5.5566,1216.5,1216.3,0.74922221]
[1672659308819,5.05,1216.5,1216.3,0.74922221]
[1672659310126,5.05,1216.5,1216.3,4.89808335]
[1672659310272,5.05,1216.5,1216.4,12.26986114]
[1672659310483,5.05,1216.5,1216.4,12.34386114]
[1672659313690,5.05,1216.5,1216.4,12.75409872]
[1672659314008,5.05,1216.5,1216.4,14.92658981]
[1672659316091,5.05,1216.5,1216.4,23.14755981]
[1672659316684,5.05,1216.5,1216.4,14.92658981]
[1672659317749,5.05,1216.5,1216.4,23.14755981]
[1672659318160,5.05,1216.5,1216.4,23.37755981]
[1672659318371,5.05,1216.5,1216.4,31.59852981]
[1672659318576,5.05,1216.5,1216.4,29.22051209]
[1672659318785,5.05,1216.5,1216.4,33.21952981]
[1672659319035,5.05,1216.5,1216.4,37.44068514]
[1672659319249,5.05,1216.5,1216.4,45.66165514]
[1672659320053,5.05,1216.5,1216.4,41.44049981]
[1672659320258,5.05,1216.5,1216.4,37.43709964]
[1672659320547,5.05,1216.5,1216.4,33.21952981]
[1672659321306,5.05,1216.5,1216.4,16.77758981]
[1672659321515,5.05,1216.5,1216.4,16.54758981]
[1672659323467,5.05,1216.5,1216.4,14.92658981]
[1672659323991,5.05,1216.5,1216.4,14.92280683]
[1672659325844,5.05,1216.5,1216.4,16.54380683]
[1672659326084,5.05,1216.5,1216.4,24.76477683]
[1672659327104,5.05,1216.5,1216.4,0.074]
[1672659327316,5.05,1216.5,1216.3,0.74922221]
[1672659329102,5.05,1216.5,1216.3,3.74922221]
[1672659329934,5.052,1216.5,1216.3,3.74922221]
[1672659330143,5.05,1216.5,1216.3,3.74922221]
[1672659333608,0.41823313,1216.4,1216.3,3.74922221]
[1672659333820,5.41823313,1216.4,1216.3,3.74922221]
[1672659334068,5.46823313,1216.4,1216.3,3.74922221]
[1672659334276,5.47023313,1216.4,1216.3,3.74922221]
[1672659334493,5.46823313,1216.4,1216.3,3.74922221]
[1672659334653,5.46823313,1216.4,1216.3,4.64753033]
[1672659338498,5.46823313,1216.4,1216.3,3.74922221]
[1672659338881,5.46823313,1216.4,1216.3,0.74922221]
[1672659342287,5.47023313,1216.4,1216.3,0.74922221]
[1672659342504,5.46823313,1216.4,1216.3,0.74922221]
[1672659347765,5.46823313,1216.4,1216.3,0.74678774]
[1672659353341,5.46823313,1216.4,1216.3,4.24678774]
[1672659353554,5.46823313,1216.4,1216.3,7.24678774]
[1672659353808,5.46823313,1216.4,1216.3,7.32078774]
[1672659354180,5.47023313,1216.4,1216.3,7.31778774]
[1672659354388,5.46823313,1216.4,1216.3,7.32078774]
[1672659361036,0.46823313,1216.4,1216.3,7.32078774]
[1672659361254,0.41823313,1216.4,1216.3,8.40775241]
[1672659361684,5.41823313,1216.4,1216.3,8.40775241]
[1672659362002,5.46823313,1216.4,1216.3,8.40775241]
[1672659362613,5.46823313,1216.4,1216.3,7.32078774]
[1672659364029,5.46823313,1216.4,1216.3,3.82078774]
[1672659364245,5.46823313,1216.4,1216.3,3.74678774]
[1672659366724,5.46823313,1216.4,1216.3,3.99917156]
[1672659371059,0.46823313,1216.4,1216.3,3.99917156]
[1672659371254,0.41823313,1216.4,1216.3,3.99917156]
[1672659371654,0.41823313,1216.4,1216.3,3.99711098]
[1672659372075,5.41823313,1216.4,1216.3,3.99711098]
[1672659372286,5.46823313,1216.4,1216.3,3.99711098]
[1672659383432,5.46823313,1216.4,1216.3,3.74472716]
[1672659383589,5.46823313,1216.4,1216.3,0.74472716]
[1672659387937,5.46823313,1216.4,1216.3,0.99711098]
[1672659393871,0.46823313,1216.4,1216.3,0.99711098]
[1672659394083,0.41823313,1216.4,1216.3,0.99711098]
[1672659394952,5.41823313,1216.4,1216.3,0.99711098]
[1672659395171,5.46823313,1216.4,1216.3,0.99711098]
[1672659395569,5.46823313,1216.4,1216.3,0.99322619]
[1672659397676,5.46823313,1216.4,1216.3,4.49322619]
[1672659397876,5.46823313,1216.4,1216.3,7.49322619]
[1672659398088,5.46823313,1216.4,1216.3,7.56722619]
[1672659398708,5.46823313,1216.4,1216.3,4.06722619]
[1672659398971,6.01702325,1216.4,1216.3,3.74084237]
[1672659399180,6.01702325,1216.4,1216.3,0.74084237]
[1672659399397,6.01702325,1216.4,1216.3,3.74084237]
[1672659400388,5.46823313,1216.4,1216.3,3.74084237]
[1672659401914,5.46823313,1216.4,1216.3,0.74084237]
[1672659402503,5.47023313,1216.4,1216.3,0.74084237]
[1672659402721,5.46823313,1216.4,1216.3,0.74084237]
[1672659405661,5.32923313,1216.4,1216.3,0.74084237]
[1672659405868,15.40385828,1216.4,1216.3,0.74084237]
[1672659406595,19.55271942,1216.4,1216.3,0.74084237]
[1672659406799,19.55065694,1216.4,1216.3,0.74084237]
[1672659410557,16.05065694,1216.4,1216.3,0.74084237]
[1672659410770,11.9017958,1216.4,1216.3,0.74084237]
[1672659411594,7.8317958,1216.4,1216.3,0.74084237]
[1672659411926,6.87467065,1216.4,1216.3,0.74084237]
[1672659415749,8.91167065,1216.4,1216.3,0.74084237]
[1672659418281,15.09753179,1216.4,1216.3,0.74084237]
[1672659421903,10.94867065,1216.4,1216.3,0.74084237]
[1672659425979,15.32753179,1216.4,1216.3,0.74084237]
[1672659426214,18.12728681,1216.4,1216.3,0.74084237]
[1672659426333,17.89728681,1216.4,1216.3,0.74084237]
[1672659428604,13.74842567,1216.4,1216.3,0.74084237]
[1672659428921,13.13092567,1216.4,1216.3,0.73803487]
[1672659429609,17.27978681,1216.4,1216.3,0.73803487]
[1672659429829,29.20778681,1216.4,1216.3,0.73803487]
[1672659430029,30.05528681,1216.4,1216.3,0.73803487]
[1672659437063,28.01828681,1216.4,1216.3,0.73803487]
[1672659442571,23.01828681,1216.4,1216.3,0.73803487]
[1672659443607,28.01828681,1216.4,1216.3,0.73803487]
[1672659446414,23.09028681,1216.4,1216.3,0.73803487]
[1672659446701,22.24278681,1216.4,1216.3,0.73803487]
[1672659450960,22.24278681,1216.4,1216.3,0.7358623]
[1672659451430,15.24278681,1216.4,1216.3,0.7358623]
[1672659454094,10.24278681,1216.4,1216.3,0.7358623]
[1672659454822,12.50978681,1216.4,1216.3,0.7358623]
[1672659455005,17.50978681,1216.4,1216.3,0.7358623]
[1672659456867,29.43778681,1216.4,1216.3,0.7358623]
[1672659457079,32.97499599,1216.4,1216.3,0.7358623]
[1672659459820,32.88397122,1216.4,1216.3,0.7358623]
[1672659461647,32.8211383,1216.4,1216.3,0.7358623]
[1672659462676,3.5,1216.3,1216.2,0.048859]
[1672659463021,20.28508929,1216.3,1216.2,0.048859]
[1672659463173,20.33508929,1216.3,1216.2,0.048859]
[1672659463587,20.72484223,1216.3,1216.2,0.048859]
[1672659464384,17.22484223,1216.3,1216.2,0.048859]
[1672659467163,15.18784223,1216.3,1216.2,0.048859]
[1672659470275,13.09504276,1216.3,1216.2,0.048859]
[1672659470998,5.43975294,1216.3,1216.2,0.048859]
[1672659471524,5.43975294,1216.3,1216.2,0.936859]
[1672659471743,5.43975294,1216.3,1216.2,5.972859]
[1672659471891,5.43975294,1216.3,1216.2,6.046859]
[1672659479203,0.43975294,1216.3,1216.2,6.046859]
[1672659479392,0.38975294,1216.3,1216.2,6.046859]
[1672659480003,5.38975294,1216.3,1216.2,6.046859]
[1672659480264,5.43975294,1216.3,1216.2,6.046859]
[1672659483321,5.43975294,1216.3,1216.2,5.158859]
[1672659484416,5.43975294,1216.3,1216.2,5.15615039]
[1672659484982,5.44175294,1216.3,1216.2,5.15315039]
[1672659485193,5.43975294,1216.3,1216.2,5.15615039]
[1672659485365,5.43975294,1216.3,1216.2,2.15615039]
[1672659485580,5.43975294,1216.3,1216.2,2.08215039]
[1672659486177,5.43975294,1216.3,1216.2,0.04615039]
[1672659490993,10.13455618,1216.3,1216.2,0.04615039]
[1672659491452,5.98569504,1216.3,1216.2,0.04615039]
[1672659495797,5.43975294,1216.3,1216.2,0.04615039]
[1672659496694,0.43975294,1216.3,1216.2,0.04615039]
[1672659496847,0.38975294,1216.3,1216.2,0.04615039]
[1672659497460,5.38975294,1216.3,1216.2,0.04615039]
[1672659497833,5.43975294,1216.3,1216.2,0.04615039]
[1672659500122,6.04744504,1216.3,1216.2,0.04615039]
[1672659505818,10.19630618,1216.3,1216.2,0.04615039]
[1672659506037,10.81390618,1216.3,1216.2,0.04218138]
[1672659508710,14.31390618,1216.3,1216.2,0.04218138]
[1672659509167,10.81390618,1216.3,1216.2,0.04218138]
[1672659509553,10.19630618,1216.3,1216.2,0.04218138]
[1672659510845,13.69630618,1216.3,1216.2,0.04218138]
[1672659511062,10.19630618,1216.3,1216.2,0.04218138]
[1672659511574,18.00490618,1216.3,1216.2,0.04218138]
[1672659515989,15.97190618,1216.3,1216.2,0.04218138]
[1672659516723,10.43621408,1216.3,1216.2,0.04218138]
[1672659516936,6.05735294,1216.3,1216.2,0.93018138]
[1672659517143,5.43975294,1216.3,1216.2,0.93018138]
[1672659517982,5.43975294,1216.3,1216.2,2.96118138]
[1672659518233,5.43975294,1216.3,1216.2,7.99818138]
[1672659518577,5.43975294,1216.3,1216.2,10.00422172]
[1672659519039,5.43975294,1216.3,1216.2,7.47602172]
[1672659523029,5.43975294,1216.3,1216.2,15.69188286]
[1672659523234,5.43975294,1216.3,1216.2,23.91421286]
[1672659523501,5.43975294,1216.3,1216.2,15.92188286]
[1672659523869,5.43975294,1216.3,1216.2,24.76181286]
[1672659524456,5.43975294,1216.3,1216.2,41.20647286]
[1672659524666,5.43975294,1216.3,1216.2,32.98414286]
[1672659525260,0.43975294,1216.3,1216.2,53.42847286]
[1672659525484,0.00555294,1216.3,1216.2,53.43347286]
[1672659525661,7.05,1217.0,1216.3,3.5]
[1672659525876,7.05,1217.0,1216.7,5.537]
[1672659526082,7.05,1217.0,1216.7,2.111]
[1672659526291,0.05,1217.0,1216.7,5.037]
[1672659526560,10.82288352,1217.1,1216.8,2.037]
[1672659526876,10.82288352,1217.1,1216.8,8.537]
[1672659527061,10.82288352,1217.1,1216.8,9.49733838]
[1672659527443,3.12968352,1217.1,1216.8,9.49733838]
[1672659527699,5.0,1216.9,1216.8,9.49733838]
[1672659527861,5.05,1216.9,1216.8,9.49733838]
[1672659528076,5.05,1216.9,1216.8,5.99733838]
[1672659532322,5.05,1216.9,1216.8,14.47258334]
[1672659532589,5.05,1216.9,1216.8,14.70258334]
[1672659533067,0.016,1217.0,1216.9,2.15391941]
[1672659533279,0.016,1217.0,1216.9,11.79721146]
[1672659533280,0.002,1217.0,1216.9,11.79721146]
[1672659533494,0.05750727,1217.2,1217.0,3.5]
[1672659533704,0.05750727,1217.2,1217.1,10.38686114]
[1672659533915,0.05750727,1217.2,1217.1,9.09424496]
[1672659534126,0.05750727,1217.2,1217.1,10.27670148]
[1672659534820,0.05750727,1217.2,1217.1,6.12784034]
[1672659534950,0.05750727,1217.2,1217.1,4.25645652]
[1672659535155,5.05750727,1217.2,1217.1,4.18245652]
[1672659535364,5.10750727,1217.2,1217.1,4.18245652]